bitfinex/quotes_SOLUSD_20240716
["timestamp","ask_amount","ask_price","bid_price","bid_amount"]
[1721121512167,25.5746,155.41,155.36,19.14]
[1721121512662,6.4341,155.43,155.37,26.8633445]
[1721121512843,23.52257457,155.42,155.38,6.4358]
[1721121513044,4.38257457,155.41,155.38,6.4358]
[1721121513244,19.14,155.42,155.38,6.4358]
[1721121513438,4.38252453,155.41,155.38,6.4358]
[1721121513635,6.4341,155.43,155.38,6.4358]
[1721121513636,16.30341458,155.45,155.39,20.42701684]
[1721121513938,23.52110606,155.44,155.39,19.14]
[1721121514143,19.14,155.44,155.39,19.14]
[1721121514366,16.73351627,155.48,155.38,16.3955]
[1721121514536,4.38049808,155.47,155.43,25.5733]
[1721121514859,19.14,155.45,155.42,16.0845]
[1721121515255,6.73275977,155.48,155.42,35.2245]
[1721121515256,23.16465977,155.48,155.42,35.2245]
[1721121515461,23.16465977,155.48,155.43,6.4336]
[1721121515462,4.38007975,155.47,155.43,6.4336]
[1721121515639,25.5725,155.46,155.42,16.0845]
[1721121516446,19.14,155.46,155.42,22.5186]
[1721121517071,0.17,155.45,155.42,22.5186]
[1721121518357,0.17,155.45,155.42,16.0845]
[1721121518565,19.31,155.45,155.42,16.0845]
[1721121518767,19.31,155.45,155.42,22.5186]
[1721121519472,0.17,155.45,155.42,22.5186]
[1721121520073,0.17,155.46,155.42,22.5186]
[1721121520964,6.6025,155.46,155.42,16.0845]
[1721121521168,16.6025,155.46,155.42,16.0845]
[1721121521471,35.7425,155.46,155.42,16.0845]
[1721121521658,16.6025,155.46,155.42,16.0845]
[1721121521842,29.31,155.46,155.42,22.5186]
[1721121522291,10.17,155.46,155.42,16.0845]
[1721121522471,10.17,155.46,155.42,22.5186]
[1721121522770,16.6026,155.46,155.42,16.0845]
[1721121522944,19.14,155.45,155.42,16.0845]
[1721121523145,0.17,155.44,155.4,6.435]
[1721121523381,19.14,155.42,155.38,38.9196]
[1721121523548,0.17,155.41,155.38,38.9196]
[1721121523754,19.31,155.41,155.38,22.5241]
[1721121524254,0.17,155.41,155.38,22.5241]
[1721121524767,19.31,155.42,155.38,22.5241]
[1721121525355,0.17,155.42,155.38,22.5241]
[1721121525572,0.17,155.42,155.39,6.4354]
[1721121525985,6.73387311,155.46,155.41,6.4341]
[1721121526185,19.14,155.46,155.42,6.4341]
[1721121526379,10.0,155.47,155.42,6.4341]
[1721121526676,19.14,155.46,155.42,6.4341]
[1721121526872,25.5725,155.46,155.41,15.131]
[1721121527183,19.14,155.46,155.42,6.4339]
[1721121527363,19.14,155.46,155.41,40.7055]
[1721121527678,10.0,155.46,155.43,16.0841]
[1721121527857,10.0,155.46,155.41,15.131]
[1721121528055,25.5734,155.44,155.4,16.0874]
[1721121528270,25.5734,155.44,155.39,19.14]
[1721121528488,25.5729,155.45,155.39,19.14]
[1721121528657,19.14,155.45,155.41,6.4345]
[1721121528982,0.17,155.44,155.4,25.5749]
[1721121529364,0.17,155.44,155.4,6.4349]
[1721121529695,0.17,155.44,155.4,25.5749]
[1721121529871,0.17,155.44,155.4,6.4349]
[1721121530081,10.17,155.44,155.4,6.4349]
[1721121530381,0.17,155.44,155.4,6.4349]
[1721121530981,0.17,155.44,155.41,6.4345]
[1721121531158,0.17,155.44,155.4,6.4349]
[1721121531358,0.17,155.44,155.41,6.4345]
[1721121531589,0.17,155.44,155.4,6.4349]
[1721121531885,19.31,155.44,155.4,6.4349]
[1721121532380,0.17,155.44,155.4,6.4349]
[1721121532985,10.0,155.46,155.42,6.4339]
[1721121533163,6.4322,155.47,155.42,6.4339]
[1721121533364,16.4317,155.48,155.42,6.4339]
[1721121533566,6.4322,155.47,155.42,6.4339]
[1721121533967,6.4322,155.47,155.41,22.5205]
[1721121534184,0.17,155.46,155.41,22.5205]
[1721121534368,0.17,155.46,155.42,6.4341]
[1721121534685,0.17,155.46,155.41,22.5205]
[1721121534990,10.17,155.46,155.41,16.086]
[1721121535169,16.6025,155.46,155.41,22.5204]
[1721121535568,6.433,155.45,155.41,16.086]
[1721121535760,0.17,155.44,155.41,22.5205]
[1721121535961,10.17,155.46,155.41,22.5205]
[1721121536361,6.6026,155.46,155.41,22.5205]
[1721121536562,0.17,155.46,155.42,6.4339]
[1721121539867,10.17,155.46,155.4,11.01]
[1721121540197,16.6025,155.46,155.41,6.4344]
[1721121541688,6.4331,155.45,155.4,12.2968316]
[1721121541889,0.17,155.44,155.4,17.4449]
[1721121542191,0.17,155.44,155.42,6.434]
[1721121542367,0.17,155.45,155.42,6.434]
[1721121542768,0.17,155.45,155.41,22.5208]
[1721121543180,6.6029,155.45,155.41,16.0863]
[1721121543388,0.17,155.45,155.41,16.0863]
[1721121543585,0.17,155.45,155.43,6.4336]
[1721121544190,0.17,155.45,155.42,6.4341]
[1721121545887,0.17,155.45,155.43,6.4336]
[1721121546998,0.17,155.45,155.41,33.5305]
[1721121547887,0.17,155.45,155.42,6.4338]
[1721121549194,0.17,155.45,155.43,6.4337]
[1721121549710,0.17,155.45,155.44,6.4333]
[1721121549871,10.0,155.48,155.44,6.4333]
[1721121550788,16.4318,155.48,155.43,11.01]
[1721121551172,0.17,155.47,155.43,17.4434]
[1721121551877,0.17,155.47,155.43,11.01]
[1721121552082,10.0,155.45,155.43,11.01]
[1721121552309,0.17,155.44,155.43,11.01]
[1721121553389,0.17,155.44,155.43,17.4437]
[1721121553594,0.17,155.44,155.43,11.01]
[1721121554105,10.0,155.48,155.43,11.01]
[1721121554305,19.11,155.45,155.43,11.01]
[1721121554482,6.4321,155.47,155.43,11.01]
[1721121554687,19.11,155.45,155.43,11.01]
[1721121555506,0.17,155.44,155.43,11.01]
[1721121556217,0.17,155.44,155.43,17.4437]
[1721121556990,0.17,155.44,155.43,11.01]
[1721121557303,0.17,155.44,155.43,17.4437]
[1721121557506,19.11,155.46,155.43,17.4437]
[1721121557681,4.55035139,155.45,155.43,17.4437]
[1721121557890,19.28,155.45,155.43,11.01]
[1721121558092,0.17,155.45,155.43,11.01]
[1721121558491,4.38043284,155.44,155.43,11.01]
[1721121558796,0.17,155.44,155.43,11.01]
[1721121559493,4.55051887,155.44,155.43,11.01]
[1721121559706,0.17,155.44,155.43,11.01]
[1721121559906,4.55051887,155.44,155.43,11.01]
[1721121561402,4.55051887,155.44,155.43,17.4437]
[1721121562324,18.00214045,155.5,155.43,17.4437]
[1721121562325,6.73125344,155.5,155.45,16.082]
[1721121562524,10.0,155.53,155.45,16.082]
[1721121562525,4.37876171,155.49,155.46,25.5421]
[1721121562695,35.5404,155.51,155.46,6.4321]
[1721121562904,29.91958677,155.5,155.45,41.6248]
[1721121563093,4.37878677,155.49,155.46,6.4324]
[1721121564203,0.17,155.48,155.46,6.4324]
[1721121564710,0.17,155.49,155.46,6.4324]
[1721121564908,19.28,155.5,155.46,6.4324]
[1721121565127,22.97167128,155.49,155.45,22.5148]
[1721121565421,0.17,155.48,155.45,16.082]
[1721121565635,0.17,155.48,155.46,6.4324]
[1721121566303,0.17,155.49,155.47,6.432]
[1721121567354,0.17,155.49,155.46,6.4324]
[1721121567496,19.28,155.5,155.46,6.4324]
[1721121567822,19.28,155.5,155.47,6.432]
[1721121567823,3.86171762,155.49,155.47,6.432]
[1721121568023,0.17,155.48,155.47,6.432]
[1721121568217,0.17,155.48,155.46,6.4324]
[1721121568396,10.17,155.48,155.43,17.4437]
[1721121568601,10.17,155.48,155.43,11.01]
[1721121568602,3.86249339,155.47,155.43,11.01]
[1721121568802,0.17,155.46,155.43,11.01]
[1721121569006,0.17,155.46,155.43,17.4437]
[1721121569508,35.5433,155.44,155.43,11.01]
[1721121570021,10.17,155.44,155.43,11.01]
[1721121570331,0.17,155.44,155.43,11.01]
[1721121570509,0.17,155.44,155.43,17.4437]
[1721121570708,0.17,155.44,155.43,11.01]
[1721121571127,10.17,155.44,155.43,11.01]
[1721121571328,29.28,155.44,155.43,11.01]
[1721121571525,35.7133,155.44,155.43,11.01]
[1721121571726,19.28,155.44,155.43,11.01]
[1721121571940,0.17,155.44,155.43,11.01]
[1721121572125,19.28,155.44,155.43,11.01]
[1721121572427,0.17,155.44,155.43,11.01]
[1721121572849,19.28,155.44,155.43,11.01]
[1721121573014,0.17,155.44,155.43,11.01]
[1721121573211,19.28,155.44,155.43,11.01]
[1721121573509,0.17,155.44,155.43,17.4437]
[1721121574121,0.17,155.44,155.43,33.5281]
[1721121574412,19.11,155.47,155.45,6.4329]
[1721121574638,19.11,155.48,155.43,27.0944]
[1721121574852,3.86245451,155.47,155.43,27.0944]
[1721121575147,19.11,155.48,155.45,6.4329]
[1721121575644,19.11,155.49,155.44,20.39644199]
[1721121575847,3.86197645,155.48,155.47,6.432]
[1721121576016,29.11,155.51,155.47,6.432]
[1721121576322,22.9713153,155.5,155.47,6.432]
[1721121576528,19.11,155.5,155.47,6.432]
[1721121576919,0.17,155.49,155.47,6.432]
[1721121577127,6.4301,155.52,155.47,6.432]
[1721121577128,19.28,155.5,155.47,6.432]
[1721121577525,19.28,155.5,155.45,16.0813]
[1721121577738,6.601,155.5,155.45,22.514]
[1721121577944,6.601,155.5,155.43,11.01]
[1721121577945,19.11,155.48,155.43,11.01]
[1721121578238,19.28,155.47,155.43,11.01]
[1721121578840,25.7121,155.47,155.43,11.01]
[1721121579141,19.11,155.46,155.43,11.01]
[1721121579325,19.28,155.45,155.43,11.01]
[1721121579534,0.17,155.45,155.43,11.01]
[1721121579925,0.17,155.45,155.43,17.4436]
[1721121580128,0.17,155.45,155.43,11.01]
[1721121580423,0.17,155.45,155.44,6.4333]
[1721121582324,6.4312,155.49,155.43,27.0936]
[1721121582325,10.0,155.51,155.45,6.4326]
[1721121582526,3.86200713,155.5,155.45,6.4326]
[1721121582832,3.86200713,155.49,155.45,6.4326]
[1721121583033,23.15968642,155.53,155.48,6.4316]
[1721121583229,10.29132865,155.52,155.48,6.4316]
[1721121583541,3.86132865,155.51,155.48,6.4316]
[1721121583727,3.86132865,155.5,155.48,6.4316]
[1721121583930,23.15968642,155.53,155.48,6.4316]
[1721121584130,23.15968642,155.53,155.46,1.28624605]
[1721121584131,10.2910921,155.52,155.47,6.432]
[1721121584356,4.0310921,155.51,155.47,6.432]
[1721121584539,0.17,155.51,155.48,1.28620956]
[1721121584741,0.17,155.51,155.47,7.71820956]
[1721121585343,10.0,155.55,155.48,1.28615985]
[1721121585656,10.0,155.55,155.47,22.4117]
[1721121585657,3.86092026,155.54,155.47,22.4117]
[1721121585837,3.86092026,155.53,155.48,1.28607236]
[1721121586034,3.86092026,155.54,155.48,1.28607236]
[1721121586237,3.86092026,155.53,155.48,1.28607236]
[1721121586441,6.4287,155.56,155.5,6.4306]
[1721121586637,10.0,155.57,155.5,6.4306]
[1721121586638,10.2887643,155.55,155.5,6.4306]
[1721121586847,3.8599643,155.54,155.5,6.4306]
[1721121587149,3.8599643,155.54,155.51,7.71638738]
[1721121587357,3.8599643,155.55,155.52,7.7159058]
[1721121587548,6.428,155.57,155.52,7.7159058]
[1721121587727,3.85947624,155.56,155.52,7.7159058]
[1721121588057,6.428,155.57,155.52,7.7159058]
[1721121588237,3.85932404,155.56,155.52,7.7159058]
[1721121588434,6.428,155.57,155.52,7.7159058]
[1721121588748,6.4284,155.56,155.51,22.5056]
[1721121588932,0.17,155.55,155.51,22.5056]
[1721121589133,0.17,155.55,155.52,6.43]
[1721121589743,10.0,155.58,155.48,21.231]
[1721121590051,6.428,155.57,155.52,6.43]
[1721121590551,16.4284,155.56,155.51,22.5058]
[1721121590756,6.428,155.57,155.52,6.43]
[1721121591259,0.17,155.56,155.52,6.43]
[1721121591564,0.17,155.56,155.52,6.4299]
[1721121591848,0.17,155.56,155.51,16.0754]
[1721121591849,16.5987,155.56,155.51,16.0754]
[1721121592043,6.5987,155.56,155.51,22.5055]
[1721121592369,0.17,155.56,155.52,6.4296]
[1721121592555,16.4271,155.59,155.54,6.4291]
[1721121593529,6.4276,155.58,155.53,22.5027]
[1721121594036,0.17,155.57,155.53,22.5027]
[1721121594550,10.17,155.57,155.51,6.43]
[1721121594749,16.429,155.55,155.5,16.0768]
[1721121594938,0.17,155.54,155.5,22.5075]
[1721121595558,6.5992,155.54,155.5,16.0768]
[1721121595735,16.4297,155.53,155.48,12.4802]
[1721121595937,16.4297,155.53,155.48,6.4316]
[1721121595938,0.17,155.52,155.48,6.4316]
[1721121597554,0.17,155.52,155.49,6.4312]
[1721121597859,0.17,155.53,155.49,6.4312]
[1721121598037,0.17,155.53,155.5,6.4308]
[1721121598435,61.37719654,155.57,155.51,6.4304]
[1721121598642,10.0,155.55,155.51,6.4304]
[1721121598948,16.4288,155.55,155.5,6.4308]
[1721121599351,6.4284,155.56,155.51,6.4304]
[1721121599655,6.4284,155.56,155.52,6.4299]
[1721121599857,0.17,155.55,155.52,6.4299]
[1721121600041,0.17,155.56,155.53,6.4295]
[1721121600242,6.5976,155.58,155.53,6.4295]
[1721121600243,19.08,155.57,155.53,6.4295]
[1721121600764,10.0,155.57,155.51,22.5054]
[1721121600983,19.08,155.53,155.51,16.0754]
[1721121601447,19.25,155.52,155.48,16.0788]
[1721121601768,19.08,155.5,155.48,16.0788]
[1721121602145,6.6,155.52,155.48,16.0788]
[1721121602357,19.08,155.5,155.48,16.0788]
[1721121602733,6.6,155.52,155.48,16.0788]
[1721121602940,0.17,155.52,155.48,22.5104]
[1721121603272,19.08,155.51,155.49,6.4312]
[1721121603448,0.17,155.5,155.49,6.4312]
[1721121603768,16.4289,155.55,155.5,6.4305]
[1721121603953,19.08,155.53,155.5,6.4305]
[1721121604149,0.17,155.52,155.5,6.4305]
[1721121604558,0.17,155.52,155.49,7.7171731]
[1721121604891,19.25,155.52,155.48,22.5103]
[1721121605159,19.25,155.52,155.49,6.4311]
[1721121605350,0.17,155.52,155.49,6.4311]
[1721121605553,19.08,155.51,155.47,6.432]
[1721121606462,19.08,155.51,155.48,6.4316]
[1721121606861,19.25,155.52,155.49,6.431]
[1721121607470,10.0,155.57,155.49,16.0772]
[1721121607642,10.0,155.57,155.5,19.08]
[1721121607643,19.08,155.55,155.5,19.08]
[1721121607965,25.5089,155.55,155.49,16.0772]
[1721121608140,6.4299,155.53,155.49,35.1572]
[1721121608343,19.08,155.51,155.49,16.0772]
[1721121608568,19.08,155.51,155.49,22.5084]
[1721121609069,19.08,155.51,155.46,16.0812]
[1721121609246,0.17,155.5,155.48,6.4316]
[1721121609445,0.17,155.5,155.47,6.432]
[1721121609961,19.08,155.51,155.49,6.4311]
[1721121610370,0.17,155.52,155.48,6.4316]
[1721121611360,0.17,155.52,155.49,6.4312]
[1721121611769,0.17,155.52,155.48,6.4316]
[1721121612389,10.0,155.49,155.45,15.0882]
[1721121612549,0.17,155.48,155.44,17.4429]
[1721121612749,16.4328,155.46,155.44,11.01]
[1721121612953,0.17,155.45,155.44,11.01]
[1721121614261,6.6029,155.45,155.44,11.01]
[1721121614555,6.7729,155.45,155.44,11.01]
[1721121614761,0.17,155.45,155.44,11.01]
[1721121614958,6.6029,155.45,155.44,11.01]
[1721121615355,0.17,155.45,155.44,11.01]
[1721121621165,6.6029,155.45,155.44,11.01]
[1721121622181,0.17,155.45,155.44,11.01]
[1721121624870,6.6029,155.45,155.44,11.01]
[1721121625072,0.17,155.45,155.44,11.01]
[1721121625487,6.6029,155.45,155.44,11.01]
[1721121625700,0.17,155.45,155.44,11.01]
[1721121626379,6.6029,155.45,155.44,11.01]
[1721121626905,54.9629,155.45,155.44,11.01]
[1721121627068,44.9629,155.45,155.44,11.01]
[1721121627272,6.7729,155.45,155.44,11.01]
[1721121629993,44.9629,155.45,155.44,11.01]
[1721121631277,51.69664,155.45,155.44,11.01]
[1721121631674,61.69664,155.45,155.44,11.01]
[1721121632992,61.69664,155.45,155.44,10.83]
[1721121634989,61.69664,155.45,155.44,10.65]
[1721121635801,76.69664,155.45,155.44,10.65]
[1721121636678,10.0,155.38,155.35,15.5581]
[1721121636878,10.0,155.36,155.32,6.2108]
[1721121637180,6.4367,155.36,155.32,6.2108]
[1721121637379,54.6262,155.38,155.32,12.6487]
[1721121637873,10.0,155.36,155.32,12.6487]
[1721121638082,16.4366,155.36,155.32,6.2108]
[1721121638305,16.4366,155.36,155.31,21.7686]
[1721121638607,10.0,155.34,155.31,15.33]
[1721121638796,0.17,155.33,155.3,22.5361]
[1721121638976,10.0,155.36,155.32,6.4383]
[1721121639497,10.0,155.36,155.31,6.4387]
[1721121639710,0.17,155.35,155.32,6.4382]
[1721121639874,6.6063,155.37,155.32,6.4382]
[1721121640071,10.17,155.36,155.32,6.4382]
[1721121640295,0.17,155.36,155.33,6.4378]
[1721121640611,10.17,155.36,155.32,6.4382]
[1721121640783,10.0,155.36,155.32,6.4382]
[1721121641993,48.19,155.38,155.32,16.0949]
[1721121642305,16.4359,155.38,155.32,16.0949]
[1721121642784,16.4359,155.38,155.33,6.4375]
[1721121642985,16.4358,155.38,155.32,16.0949]
[1721121643211,10.0,155.38,155.32,16.0949]
[1721121643390,16.73560837,155.41,155.33,22.99203116]
[1721121643709,10.0,155.41,155.33,22.99203116]
[1721121643892,10.0,155.41,155.37,22.5264]
[1721121644209,16.4345,155.41,155.37,16.0903]
[1721121644780,16.4345,155.41,155.36,6.4366]
[1721121644999,6.4358,155.38,155.34,16.0934]
[1721121645305,16.4362,155.37,155.33,21.7046]
[1721121646198,6.4367,155.36,155.33,21.7046]
[1721121646401,6.6067,155.36,155.33,6.2088]
[1721121646578,6.6067,155.36,155.31,16.0965]
[1721121646979,0.17,155.36,155.31,16.0965]
[1721121647179,0.17,155.36,155.33,6.4377]
[1721121647587,0.17,155.36,155.32,6.4382]
[1721121647987,10.0,155.4,155.37,6.4361]
[1721121648190,10.0,155.4,155.39,6.4354]
[1721121648391,10.0,155.4,155.36,16.0907]
[1721121648992,16.435,155.4,155.36,16.0907]
[1721121649318,6.4358,155.38,155.34,22.9039]
[1721121649527,16.4363,155.37,155.34,22.9039]
[1721121649805,10.0,155.37,155.34,22.9039]
[1721121650012,0.17,155.38,155.34,22.9039]
[1721121650315,0.17,155.37,155.34,22.9039]
[1721121650495,10.17,155.37,155.34,22.9039]
[1721121651585,10.17,155.37,155.33,6.4377]
[1721121652982,10.17,155.37,155.32,22.5333]
[1721121653486,10.17,155.37,155.33,6.4377]
[1721121654408,10.0,155.4,155.36,6.4366]
[1721121654590,13.16191424,155.41,155.36,6.4366]
[1721121654784,13.16191424,155.41,155.31,1.28728613]
[1721121654785,10.0,155.42,155.39,6.435]
[1721121655008,26.4332,155.45,155.39,6.435]
[1721121655199,6.72466981,155.45,155.4,17.37322815]
[1721121655508,10.0,155.45,155.4,17.37322815]
[1721121655812,10.0,155.45,155.41,6.4345]
[1721121656312,16.4329,155.45,155.4,17.37322815]
[1721121656518,16.4329,155.45,155.37,16.4071]
[1721121656519,0.17,155.44,155.37,32.4976]
[1721121656684,10.0,155.43,155.37,32.4976]
[1721121656889,10.0,155.41,155.36,6.3099]
[1721121657085,6.605,155.4,155.35,6.437]
[1721121657298,6.605,155.4,155.34,22.5309]
[1721121659020,0.17,155.4,155.34,17.38080644]
[1721121659191,0.17,155.4,155.37,6.4362]
[1721121659802,0.17,155.4,155.36,6.4365]
[1721121660024,6.6053,155.4,155.34,22.5306]
[1721121660189,6.605,155.4,155.35,6.437]
[1721121660519,6.4345,155.42,155.34,16.0935]
[1721121660694,10.0,155.41,155.35,6.4367]
[1721121660895,16.4354,155.39,155.34,22.5309]
[1721121661114,6.4361,155.38,155.33,22.5302]
[1721121661325,10.0,155.36,155.29,15.9888]
[1721121661508,10.0,155.36,155.29,22.4279]
[1721121661823,6.6071,155.35,155.3,6.4391]
[1721121662031,10.0,155.33,155.29,15.9888]
[1721121662202,10.0,155.33,155.28,28.6846]
[1721121662523,0.17,155.32,155.28,22.2451]
[1721121662702,16.437,155.35,155.29,1.287727]
[1721121662895,0.17,155.34,155.28,22.2451]
[1721121663105,0.17,155.34,155.32,6.4381]
[1721121663324,54.6264,155.37,155.31,16.0966]
[1721121663494,0.17,155.36,155.31,22.5352]
[1721121664101,6.4378,155.34,155.28,6.1454]
[1721121664403,10.0,155.35,155.29,6.4395]
[1721121664716,0.17,155.34,155.31,6.4387]
[1721121664942,0.17,155.34,155.29,17.38563241]
[1721121665119,0.17,155.34,155.29,23.82473241]
[1721121665292,6.6074,155.34,155.29,22.537]
[1721121666330,6.6074,155.34,155.29,23.82479429]
[1721121666628,6.6074,155.34,155.29,22.537]
[1721121666804,10.0,155.33,155.29,16.0979]
[1721121667126,0.17,155.32,155.29,16.0979]
[1721121667331,10.0,155.33,155.29,23.82487382]
[1721121667628,6.73031114,155.36,155.31,6.4383]
[1721121668337,16.4362,155.37,155.32,6.4382]
[1721121668834,6.4358,155.38,155.32,16.0955]
[1721121668999,10.0,155.42,155.33,1.28759068]
[1721121669335,10.0,155.44,155.39,6.4353]
[1721121669502,6.4329,155.45,155.4,6.4349]
[1721121669833,6.4329,155.45,155.37,16.0903]
[1721121669834,16.4335,155.44,155.38,6.4354]
[1721121670322,16.4329,155.45,155.39,7.72194819]
[1721121671028,6.4338,155.43,155.37,22.5261]
[1721121671331,6.4338,155.43,155.37,22.5264]
[1721121671623,10.0,155.42,155.34,6.1552]
[1721121671799,10.0,155.42,155.35,17.37889884]
[1721121672004,48.19,155.45,155.35,17.37889884]
[1721121672005,10.0,155.4,155.36,6.4362]
[1721121672206,10.0,155.4,155.35,16.0917]
[1721121672414,0.17,155.39,155.35,16.0917]
[1721121672618,10.0,155.38,155.33,6.4378]
[1721121672825,10.0,155.38,155.32,15.9006]
[1721121672826,0.17,155.37,155.32,22.3388]
[1721121673004,10.0,155.36,155.31,16.0958]
[1721121673324,0.17,155.35,155.32,6.4383]
[1721121673530,0.17,155.35,155.28,16.5186]
[1721121673708,6.607,155.35,155.3,6.439]
[1721121674110,0.17,155.35,155.31,6.4386]
[1721121674609,0.17,155.35,155.3,6.4391]
[1721121674807,6.6072,155.35,155.3,6.4391]
[1721121675020,6.6072,155.35,155.29,23.82509444]
[1721121675222,0.17,155.35,155.3,6.4387]
[1721121675412,16.4361,155.38,155.32,16.0952]
[1721121675621,10.0,155.36,155.31,6.4384]
[1721121675810,0.17,155.35,155.31,6.4384]
[1721121676010,10.0,155.38,155.32,7.72577774]
[1721121676210,26.435,155.4,155.35,6.437]
[1721121676425,16.435,155.4,155.35,6.437]
[1721121676625,6.4354,155.39,155.33,22.5313]
[1721121677431,10.0,155.42,155.35,16.0916]
[1721121677628,6.4361,155.38,155.32,6.4379]
[1721121677808,6.4366,155.36,155.31,16.0959]
[1721121678215,6.437,155.35,155.31,16.0959]
[1721121678414,16.6066,155.37,155.31,22.5342]
[1721121678621,0.17,155.36,155.32,6.4382]
[1721121678814,6.6066,155.36,155.31,16.0959]
[1721121679324,6.6066,155.36,155.31,22.5342]
[1721121679325,0.17,155.36,155.31,22.5342]
[1721121679730,0.17,155.36,155.32,6.4382]
[1721121679929,16.4358,155.39,155.31,16.0959]
[1721121680241,0.17,155.38,155.32,1.28733366]
[1721121680531,0.17,155.38,155.34,6.4371]
[1721121680730,6.6055,155.39,155.34,6.4371]
[1721121681121,16.6055,155.39,155.33,7.72513426]
[1721121681318,0.17,155.39,155.35,6.437]
[1721121681542,6.435,155.4,155.36,1.28729077]
[1721121681744,6.4346,155.41,155.36,1.28729077]
[1721121682924,6.4342,155.42,155.36,6.4363]
[1721121683245,26.73475565,155.44,155.34,6.1403]
[1721121683246,10.0,155.39,155.34,6.1403]
[1721121683416,0.17,155.38,155.32,16.0957]
[1721121683827,0.17,155.38,155.3,6.4095]
[1721121683828,0.17,155.38,155.31,1.28744169]
[1721121684033,16.4363,155.37,155.3,6.4095]
[1721121684339,6.6058,155.38,155.31,17.38337773]
[1721121684720,6.4366,155.37,155.31,23.82197773]
[1721121684938,6.6066,155.36,155.31,22.5345]
[1721121685152,6.6066,155.36,155.31,16.0959]
[1721121685650,16.4372,155.35,155.31,16.0959]
[1721121686020,0.17,155.34,155.3,6.4391]
[1721121686221,10.0,155.37,155.31,1.28770103]
[1721121686425,0.17,155.36,155.32,6.4379]
[1721121687038,0.17,155.36,155.32,7.72541546]
[1721121687343,6.4358,155.38,155.33,6.4378]
[1721121687716,6.4362,155.37,155.32,7.72571546]
[1721121688235,6.4359,155.38,155.33,6.4379]
[1721121690045,0.17,155.39,155.34,7.72472249]
[1721121690247,6.4358,155.38,155.33,16.0939]
[1721121690744,10.17,155.37,155.3,16.0976]
[1721121690944,6.4372,155.35,155.31,1.28756567]
[1721121691130,6.4372,155.35,155.3,16.0976]
[1721121691131,10.0,155.35,155.3,16.0976]
[1721121691329,6.4372,155.35,155.3,22.5366]
[1721121691643,6.4367,155.36,155.31,6.4386]
[1721121692027,16.6063,155.37,155.32,6.4382]
[1721121692350,16.6063,155.37,155.3,16.0976]
[1721121692351,0.17,155.37,155.33,1.00020402]
[1721121692519,6.4362,155.37,155.32,16.0949]
[1721121692724,6.4362,155.37,155.32,22.5331]
[1721121693724,6.6058,155.38,155.33,7.72521294]
[1721121693927,6.4363,155.37,155.33,1.28741294]
[1721121694240,6.6059,155.38,155.33,7.72521294]
[1721121694743,6.4366,155.36,155.32,22.5331]
[1721121694959,6.4366,155.36,155.32,16.0949]